Cogmind - Beta 13 @@@ ROGUE MODE // 2024.04.08 @ 02:25:45 Player: Toa of Guts Result: Self-destructed Performance ------------- Evolutions (1) 500 Regions Visited (2) 400 Robots Destroyed (21) 105 Value Destroyed (667) 667 Prototype IDs (0) 0 Alien Tech Used (0) 0 Bonus (0) 0 TOTAL SCORE: 1672 Bonus ------- None Cogmind --------- Core Integrity 265/400 Matter 284/300 Energy 170/250 System Corruption 0% Temperature Cool (24) Movement Treading (240) Ox1 Location -9/Materials Parts ------- > --- POWER (1) -------- Ion Engine > --- PROPULSION (2) --- Light Treads > --- UTILITY (2) ------ Large Storage Unit > --- WEAPON (4) ------- (None) > --- INVENTORY (15) --- Light Ion Engine Aluminum Leg Aluminum Leg Aluminum Leg Wheel Compact Wheel Heat Sink Heat Sink Improved Heat Sink Visual Processing Unit Sensor Array Medium Armor Plating Beam Rifle Peak State ------------ > --- POWER ------------ Improved Ion Engine > --- PROPULSION ------- Wheel Compact Wheel > --- UTILITY ---------- Improved Heat Sink Large Storage Unit > --- WEAPON ----------- Beam Rifle Light Assault Rifle Heavy Assault Rifle Shotgun > --- INVENTORY -------- Ion Engine Light Ion Engine Light Treads Light Treads Aluminum Leg Aluminum Leg Aluminum Leg Heat Sink Heat Sink Heat Sink Visual Processing Unit Sensor Array Medium Armor Plating Beam Rifle Light Assault Rifle [Rating: 16] Favorites ----------- Power Light Ion Engine Engine Light Ion Engine Propulsion Aluminum Leg Treads Light Treads Leg Aluminum Leg Wheel Wheel Utility Large Storage Unit Device Improved Heat Sink Storage Large Storage Unit Weapon Light Assault Rifle Energy Gun Beam Rifle Ballistic Gun Light Assault Rifle Build | -11 -10 -9 ------- Run | Yrd Mat Mat Slots Evolved 2 | . . 2 Power . | . . . Propulsion . | . . . Utility . | . . . Weapon 2 | . . 2 Parts Attached 28 | 4 7 17 Power 6 | 1 2 3 Engine 6 | 1 2 3 Core . | . . . Reactor . | . . . Propulsion 7 | . 2 5 Treads 2 | . . 2 Leg 3 | . 2 1 Wheel 2 | . . 2 Hover . | . . . Flight . | . . . Utility 4 | 1 2 1 Device 2 | . 1 1 Storage 2 | 1 1 . Processor . | . . . Hackware . | . . . Protection . | . . . Artifact . | . . . Weapon 11 | 2 1 8 Energy Gun 3 | . 1 2 Energy Cannon . | . . . Ballistic Gun 8 | 2 . 6 Ballistic Cannon . | . . . Launcher . | . . . Special Weapon . | . . . Impact Weapon . | . . . Slashing Weapon . | . . . Piercing Weapon . | . . . Special Melee Weapon . | . . . Unidentified Prototypes . | . . . Parts Lost 8 | . 1 7 Power 2 | . 1 1 Propulsion 1 | . . 1 Utility 1 | . . 1 Weapon 4 | . . 4 Highest Loss Streak 6 | . 1 6 To Critical Strikes . | . . . Average Slot Usage (%) 91 | . 86 94 Engine 9 | . 12 7 Leg 8 | . 19 . Wheel 12 | . . 21 Device 10 | . 10 11 Storage 12 | . 14 11 Energy Gun 10 | . 10 10 Ballistic Gun 25 | . 17 32 Naked Turns . | . . . Heaviest Build 39 | 11 30 39 Greatest Support 40 | 3 20 40 Greatest Overweight (x) 4 | 3 4 1 Average Overweight (x) . | 2 . . Largest Inventory Capacity 15 | 8 15 15 Average Capacity 11 | 7 8 15 Most Carried 15 | 8 8 15 Average Carried 10 | 6 6 13 Final Capacity 15 | 8 15 15 Final Carried 13 | 8 8 13 Class Distribution -------------------- 44% | Mutant 29% | Scavenger-Gunner 25% | Gunner Dominant Class ---------------- Mutant | -10/Materials Scavenger-Gunner | -9/Materials Resources | -11 -10 -9 ----------- Run | Yrd Mat Mat Matter Collected 663 | 182 140 341 Remotely . | . . . Salvage Created 793 | . 230 563 Parts 44 | . 8 36 Haulers Intercepted . | . . . Recyclers Shooed . | . . . Parts Field Recycled . | . . . Retrieved Matter . | . . . Parts Self-Destructed . | . . . Prevented . | . . . Kills | -11 -10 -9 ------- Run | Yrd Mat Mat Combat Hostiles Destroyed 19 | . 5 14 Guns 18 | . 5 13 AOE 1 | . . 1 Classes Destroyed 5 | . 1 4 Worker 1 | . . 1 Watcher 1 | . . 1 Swarmer 4 | . . 4 Grunt 11 | . 5 6 Sentry 4 | . . 4 Best Kill Streak 5 | . 2 5 Combat Bots Only 5 | . 2 5 Max Kills in Single Turn 2 | . 1 2 Gunslinging 1 | . . 1 Exploded 1 | . . 1 Melee . | . . . Uniques/NPCs Destroyed . | . . . Combat | -11 -10 -9 -------- Run | Yrd Mat Mat Hostile Shots Fired 157 | . 41 116 Missed 47 | . 13 34 Damage Taken 1461 | . 327 1134 Core 202 | . 67 135 Absorbed by Shields . | . . . Core Remaining (%) 86 | 100 73 . Volleys Fired 48 | . 19 29 Largest 4 | . 2 4 Hottest 122 | . 70 122 Shots Fired 144 | . 38 106 Gun 144 | . 38 106 Cannon . | . . . Launcher . | . . . Special . | . . . Kinetic 104 | . 24 80 Thermal 40 | . 14 26 Explosive . | . . . Electromagnetic . | . . . Robot Hit Streak 12 | . 10 12 Robot Miss Streak 4 | . 3 4 Penetration Max . | . . . Secondary Targets 4 | . . 4 Max Gunslinging Chain 1 | . . 1 Shots Hit Robots 97 | . 28 69 Core Hits 43 | . 13 30 Critical Kills . | . . . Critical Parts Destroyed 1 | . 1 . Critical Strikes 1 | . 1 . Destroy 1 | . 1 . Melee Attacks . | . . . Impact . | . . . Slashing . | . . . Piercing . | . . . Sneak Attacks . | . . . Combat Hostiles . | . . . Follow-up Attacks . | . . . Damage Inflicted 1647 | . 323 1324 Guns 1186 | . 321 865 Cannons . | . . . Explosions 459 | . . 459 Melee . | . . . Ramming 2 | . 2 . Kinetic 834 | . 183 651 Thermal 811 | . 138 673 Explosive . | . . . Electromagnetic . | . . . Impact . | . . . Slashing . | . . . Piercing . | . . . Highest Corruption . | . . . Average Corruption . | . . . Corruption Purged . | . . . Corruption Blocked . | . . . Overload Shots . | . . . Overflow Damage 5 | . . 5 Projectiles . | . . . Explosions 5 | . . 5 Melee . | . . . Knockbacks . | . . . Impact . | . . . Kinetic . | . . . Secondary . | . . . Self-Inflicted Damage 145 | . . 145 Shots 2 | . . 2 Rammed . | . . . Targets Rammed 1 | . 1 . Kicked 1 | . 1 . Crushed . | . . . Highest Temperature 48 | . 9 48 Average Temperature 13 | . 9 14 Received Heat Transfer 642 | . 183 459 Siege Activations . | . . . Robots Corrupted . | . . . Combat Hostiles . | . . . Parts Fried . | . . . Impact Corruptions . | . . . Robots Melted . | . . . Combat Hostiles . | . . . Parts Melted 3 | . 3 . Heat Transferred 1462 | . 407 1055 Parts Sabotaged . | . . . Parts Stolen . | . . . Parts Stripped . | . . . Power Chain Reactions . | . . . Alert | -11 -10 -9 ------- Run | Yrd Mat Mat Peak Influence 304 | . 85 304 Initial 35 | . . 35 Average 121 | . 36 197 Maximum Alert Level 1 | . . 1 Low Security (%) 68 | 100 100 42 Level 1 31 | . . 57 Level 2 . | . . . Level 3 . | . . . Level 4 . | . . . Level 5 . | . . . High Security . | . . . Max Security . | . . . Squads Dispatched 2 | . 2 . Investigation 1 | . 1 . Extermination . | . . . Reinforcement 1 | . 1 . Assault . | . . . Garrison . | . . . Intercept . | . . . Searches Triggered . | . . . Construction Impeded . | . . . Haulers Reinforced . | . . . Active Scanning Responses . | . . . Cargo Convoy Interrupts . | . . . Stealth | -11 -10 -9 --------- Run | Yrd Mat Mat Distress Signals 2 | . . 2 Communications Jammed . | . . . Distress Signals . | . . . Times Spotted 40 | . 11 29 Peak Tracking Total 10 | . 4 10 Tactical Retreats 2 | . . 2 Traps | -11 -10 -9 ------- Run | Yrd Mat Mat Traps Triggered 1 | . 1 . Indirectly . | . . . Trap Hack Attempts . | . . . Triggered . | . . . Disarmed . | . . . Reprogrammed . | . . . Reused . | . . . Traps Extracted . | . . . Installed . | . . . Triggered . | . . . Machines | -11 -10 -9 ---------- Run | Yrd Mat Mat Machines Disabled 3 | . . 3 Max in Single Turn 2 | . . 2 Machines Repaired . | . . . Machines Dismantled . | . . . Machines Sabotaged . | . . . Overloaded Fab Kills . | . . . Hacking | -11 -10 -9 --------- Run | Yrd Mat Mat Machines Accessed . | . . . Terminals . | . . . Fabricators . | . . . Repair Stations . | . . . Recycling Units . | . . . Scanalyzers . | . . . Garrison Access . | . . . Total Hacks . | . . . Successful . | . . . Failed . | . . . Catastrophic . | . . . Database Lockouts . | . . . Manual . | . . . Terminals . | . . . Fabricators . | . . . Repair Stations . | . . . Recycling Units . | . . . Scanalyzers . | . . . Garrison Access . | . . . Terminal Hacks . | . . . Fabricator Hacks . | . . . Repair Station Hacks . | . . . Recycling Unit Hacks . | . . . Scanalyzer . | . . . Garrison Access Hacks . | . . . Unauthorized Hacks . | . . . Terminals . | . . . Fabricators . | . . . Repair Stations . | . . . Recycling Units . | . . . Scanalyzers . | . . . Garrison Access . | . . . Data Cores Recovered . | . . . Used . | . . . Hacking Detections . | . . . Full Trace Events . | . . . Feedback Events . | . . . Feedback Blocked . | . . . Robot Schematics Acquired . | . . . Robots Built . | . . . Authchips . | . . . Time . | . . . Total Robot Build Rating . | . . . Part Schematics Acquired . | . . . Parts Built . | . . . Authchips . | . . . Time . | . . . Total Part Build Rating . | . . . Parts Repaired . | . . . Time . | . . . Parts Recycled . | . . . Recycled Matter . | . . . Retrieved Matter . | . . . Retrieved Components . | . . . Parts Scanalyzed . | . . . Part Schematics Acquired . | . . . Parts Damaged . | . . . Bothacking | -11 -10 -9 ------------ Run | Yrd Mat Mat Used RIF Installer . | . . . Robots Hacked . | . . . Non-combat . | . . . Combat . | . . . Robot Hacks Applied . | . . . Relay Couplers Released . | . . . Fabnet Peak Effective % . | . . . Robots Rewired . | . . . Allies Hacked . | . . . Hacks Repelled . | . . . Allies | -11 -10 -9 -------- Run | Yrd Mat Mat Total Allies . | . . . Largest Group . | . . . Highest-Rated Group . | . . . Highest-Rated Ally . | . . . Total Orders . | . . . Ally Attacks . | . . . Total Damage . | . . . Kills . | . . . Allies Corrupted . | . . . Allies Melted . | . . . Intel | -11 -10 -9 ------- Run | Yrd Mat Mat Robot Analysis Total . | . . . Derelict Logs Recovered . | . . . Drone Launches . | . . . Drone Recoveries . | . . . Exploration | -11 -10 -9 ------------- Run | Yrd Mat Mat Turns Passed 1552 | 73 642 837 Spaces Moved 860 | 37 335 488 Core 110 | 37 73 . Treads 3 | . . 3 Legs 262 | . 262 . Wheels 485 | . . 485 Hover . | . . . Flight . | . . . Fastest Speed 50 | 50 120 105 Average Speed 121 | 164 140 105 Slowest Speed 250 | 200 250 160 Overloaded Moves . | . . . Propulsion Burnouts . | . . . Robots Hopped . | . . . Cave-ins Triggered . | . . . Exploration Rate (%) 29 | 4 49 36 Regions Visited 2 Branch Regions . Pre-discovered Areas . | . . . Known Exits Taken . | . . . Unknown Exits Taken 2 | 1 1 . Scrap Searched . | . . . Spaces Dug . | . . . Terrain Destroyed 26 | . . 26 Melee . | . . . Projectile . | . . . AOE 26 | . . 26 Terrain Rammed . | . . . Walls Destroyed . | . . . Machines Disabled . | . . . Actions | -11 -10 -9 --------- Run | Yrd Mat Mat Total 1267 | 48 468 751 Wait 306 | . 104 202 Move 858 | 36 334 488 Hop . | . . . Pick Up 17 | 8 2 7 Fast Attach 6 | 4 1 1 Attach 6 | . 3 3 Detach . | . . . Swap 16 | . 3 13 Drop 9 | . 1 8 Fire 48 | . 19 29 Melee . | . . . Ram . | . . . Kick 1 | . 1 . Crush . | . . . Escape Stasis . | . . . Rewire . | . . . Trap . | . . . Miscellaneous . | . . . Route ------- -11/Scrapyard -10/Materials (discovered 3 exits: [*Mat x2] / [*Min]) -9/Materials (discovered 2 exits: [*Min x2]) History --------- Turn | Location | Event 8 | -11/Scrapyard | Discovered new exit (range 16) 74 | -11/Scrapyard | Entered Materials 100 | -10/Materials | Discovered new exit (range 16) 282 | -10/Materials | Discovered new exit (range 3) 307 | -10/Materials | Build established: Mutant 652 | -10/Materials | Discovered new exit (range 13) 716 | -10/Materials | Entered another Materials area 716 | -9/Materials | Evolved 2 slots: Weapon x2 977 | -9/Materials | Discovered new exit (range 8) 1072 | -9/Materials | Build established: Scavenger-Gunner 1352 | -9/Materials | Discovered new exit (range 10) 1545 | -9/Materials | Build established: Gunner 1553 | -9/Materials | Self-destructed Last Messages --------------- 01538_ G-34 Mercenary destroyed. 01538_ Switching to secondary target: G-34 Mercenary. 01543_ Fusion Modulator explodes. 01543_ G-34 Mercenary destroyed. 01543_ Destroyed Aluminum Leg. 01543_ G-34 Mercenary destroyed. 01544_ Acquired 21 matter. 01546_ K-01 Serf collects debris. 01546_ Beam Rifle destroyed. 01546_ W-16 Scout sends out distress signal. 01549_ K-01 Serf collects debris. 01551_ Shotgun destroyed. 01551_ Lgt. Assault Rifle destroyed. 01551_ U-05 Engineer lays Concrete. 01552_ M-13 Machinist repairs Lgt. Nuclear Core. 01552_ Lgt. Assault Rifle destroyed. 01552_ Lgt. Treads destroyed. 01552_ K-01 Serf collects debris. 01552_ U-05 Engineer lays Concrete. 01553_ Cooling System destroyed. Map ----- +----------------------------------------------------+ | ?????????????????????????????????????????????????? | | ?????????????????????????????????????????????????? | | ?????????????????????????????????????????????????? | | ?????????????????????????????????????????????????? | | ?????????????????????????????????????????????????? | | ?????????????????????????????????????????????????? | | ?????????????????????????????????????????????????? | | ??? ?????????????????????????????????????????????? | | ??? ?????????????????????????????????????????????? | | ??? ?????????????????????????????????????????????? | | ??# ?????????????????????????????????????????????? | | ??# ?????????????????????????????????????????????? | | ###/#####????????????????????????????????????????? | | #????????????????????????????????????????? | | #????????????????????????????????????????? | | !!! #????????????????????????????????????????? | | !!! #????????????????????????????????????????? | | !! #????????????????????????????????????????? | | "#????????????????????????????????????????? | | T#????????????????????????????????????????? | | "#????????????????#########???????????????? | | ?? ????????????????### #???????????????? | | ?###/#############?????# ; #???????????????? | | ?# #????## ; ##??????????????? | | ?# ######; = ;#??????????????? | | ?# !! Y@ ;#??????????????? | | ?# !/ g ! #??????????????? | | ?# w k = #??????????????? | | ?# g #??????????????? | | ?# ######### u gm ;#??????????????? | | ?# #???""?"# ;#??????????????? | | ## #? !"| "# ; ##??????????????? | | #" "# ;;;;;;;;#???????????????? | | ??????????????? | | < ?????????????? | | w g ????????????? | | ###### #######/####### ????????????? | | #############??????? g????????????????????? | | # #???????????!!????????????????????? | | " % #""" #???????????!!????????????????????? | | " #"Y #?????????????????????????????????? | | " #""" #?????????????????????????????????? | | # %% #?????????????????????????????????? | | + "" #?????????????????????????????????? | | # ""% #?????????????????????????????????? | | # "" % #?????????????????????????????????? | | ## ## #?????????????????????????????????? | | ## ## #?????????????????????????????????? | | ## ## #?????????????????????????????????? | | ## ######## #?????????????????????????????????? | +----------------------------------------------------+ Best States ------------- Heat Dissipation 50 Energy Generation 12 Energy Capacity 265 Matter Stores 300 Matter Capacity 300 Sight Range 16 Terrain Scan Density 10 Evasion (%) 55 Recoil Reduction 2 Item Schematics ----------------- None Robot Schematics ------------------ None Fabricated ------------ Nothing Alien Tech Used ----------------- None Achievements -------------- None Challenges ------------ None Game ------ Seed ParticleTimingBlade Manual? 0 Play Time 00:15:40 Cumulative 86.0 hours Start 2024.04.08 @ 02:10:19 End 2024.04.08 @ 02:25:45 Sessions 1 Manual Loads 0 Difficulty Rogue Special Mode None Game No. 61 Rogue 61 Adventurer 0 Explorer 0 Win Type - Total 0 Types 0/0/0/0/0/0/0/0/0 Lore% 32 Gallery% 45 Achievement% 28 Wizard Run 0 Options --------- Layout 0 ASCII 0 Keyboard 0 Movement Mouse Keybinds 0 Fullscreen 1 Font 24/X11 Map View 76x50 Zoom Use 0% Tactical HUD 1 Map Filters NONE Filters NONE Steam 1 RUN: 0023eacf-5112-4282-bcb6-5c1e036428d2